fUST/lending_fUST_20240613
["ID","MTS","AMOUNT","RATE_DAILY","PERIOD"]
[329323839,1718244655306,-500.0,0.0001726,2]
[329323840,1718244655323,-500.0,0.0001726,2]
[329323841,1718244655337,-172.70336539,0.0001726,2]
[329323842,1718244655353,-512.33553468,0.0001726,2]
[329323843,1718244655366,-500.0,0.0001726,2]
[329323844,1718244655378,-629.86678429,0.0001726,2]
[329323845,1718244655391,-500.0,0.0001726,2]
[329323846,1718244655436,-500.0,0.0001726,2]
[329323847,1718244655449,-500.0,0.0001726,2]
[329323848,1718244655461,-500.0,0.0001726,2]
[329323849,1718244655475,-645.76,0.0001726,2]
[329323850,1718244655487,-500.0,0.0001726,2]
[329323851,1718244655500,-500.0,0.0001726,2]
[329323852,1718244655513,-500.0,0.0001726,2]
[329323853,1718244655525,-500.0,0.0001726,2]
[329323854,1718244655537,-500.0,0.0001726,2]
[329323855,1718244655548,-500.0,0.0001726,2]
[329323856,1718244655559,-500.0,0.0001726,2]
[329323857,1718244655571,-500.0,0.0001726,2]
[329323858,1718244655582,-489.0,0.0001726,2]
[329323859,1718244655594,-500.0,0.0001726,2]
[329323860,1718244655605,-500.0,0.0001726,2]
[329323861,1718244655617,-500.0,0.0001726,2]
[329323862,1718244655629,-520.97,0.0001726,2]
[329323863,1718244655640,-500.0,0.0001726,2]
[329323864,1718244655652,-510.12029792,0.0001726,2]
[329323865,1718244655664,-500.0,0.0001726,2]
[329323866,1718244655702,-500.0,0.0001726,2]
[329323867,1718244655714,-500.0,0.0001726,2]
[329323868,1718244655727,-500.0,0.0001726,2]
[329323869,1718244655738,-500.0,0.0001726,2]
[329323870,1718244655749,-696.98,0.0001726,2]
[329323871,1718244655763,-500.0,0.0001726,2]
[329323872,1718244655775,-500.0,0.0001726,2]
[329323873,1718244655786,-1196.98,0.0001726,2]
[329323874,1718244655798,-1109.56,0.0001726,2]
[329323875,1718244655810,-751.31,0.0001726,2]
[329323876,1718244655821,-504.99409292,0.0001726,2]
[329323877,1718244655832,-500.0,0.0001726,2]
[329323878,1718244655843,-500.0,0.0001726,2]
[329323879,1718244655854,-1254.28,0.0001726,2]
[329323880,1718244655866,-500.0,0.0001726,2]
[329323881,1718244655878,-533.82895435,0.0001726,2]
[329323882,1718244655890,-500.0,0.0001726,2]
[329323883,1718244655902,-2253.24,0.0001726,2]
[329323884,1718244655913,-500.0,0.0001726,2]
[329323885,1718244655926,-500.0,0.0001726,2]
[329323886,1718244655937,-500.0,0.0001726,2]
[329323887,1718244655951,-500.0,0.0001726,2]
[329323888,1718244655962,-752.11,0.0001726,2]
[329323889,1718244655976,-500.0,0.0001726,2]
[329323890,1718244655988,-500.0,0.0001726,2]
[329323891,1718244656002,-500.0,0.0001726,2]
[329323892,1718244656016,-500.0,0.0001726,2]
[329323893,1718244656028,-6018.11,0.0001726,2]
[329323894,1718244656042,-500.0,0.0001726,2]
[329323895,1718244656054,-512.6428084,0.0001726,2]
[329323896,1718244656068,-4585.7,0.0001726,2]
[329323897,1718244656080,-500.0,0.0001726,2]
[329323898,1718244656091,-500.0,0.0001726,2]
[329323899,1718244656102,-500.0,0.0001726,2]
[329323900,1718244656114,-6612.15,0.0001726,2]
[329323901,1718244656125,-697.97,0.0001726,2]
[329323902,1718244656137,-649.01,0.0001726,2]
[329323903,1718244656150,-658.07,0.0001726,2]
[329323904,1718244656161,-439.28333055,0.0001726,2]
[329323905,1718244656172,-1644.06,0.0001726,2]
[329323906,1718244656183,-500.0,0.0001726,2]
[329323907,1718244656194,-511.52837509,0.0001726,2]
[329323908,1718244656205,-2070.09,0.0001726,2]
[329323909,1718244656217,-500.0,0.0001726,2]
[329323910,1718244656228,-500.0,0.0001726,2]
[329323911,1718244656240,-1041.89,0.0001726,2]
[329323912,1718244656252,-500.0,0.0001726,2]
[329323913,1718244656266,-500.0,0.0001726,2]
[329323914,1718244656277,-500.0,0.0001726,2]
[329323915,1718244656288,-500.0,0.0001726,2]
[329323916,1718244656301,-2615.32,0.0001726,2]
[329323917,1718244656313,-213.37223052,0.00017366,2]
[329323918,1718244656326,-500.0,0.00017533,2]
[329323919,1718244656339,-514.18,0.00017533,2]
[329323920,1718244656350,-500.0,0.00017533,2]
[329323921,1718244656362,-500.0,0.00017533,2]
[329323922,1718244656378,-500.0,0.00017534,2]
[329323923,1718244656389,-500.0,0.00017534,2]
[329323924,1718244656401,-500.0,0.00017534,2]
[329323925,1718244656413,-500.0,0.00017534,2]
[329323926,1718244656425,-513.9664267,0.00017534,2]
[329323927,1718244656436,-588.83,0.00017534,2]
[329323928,1718244656448,-500.0,0.00017534,2]
[329323929,1718244656459,-509.72942073,0.00017534,2]
[329323930,1718244656473,-511.55,0.00017534,2]
[329323931,1718244656486,-500.0,0.00017534,2]
[329323932,1718244656500,-500.0,0.00017534,2]
[329323933,1718244656518,-500.0,0.00017534,2]
[329323934,1718244656529,-500.0,0.00017534,2]
[329323935,1718244656540,-500.0,0.00017534,2]
[329323936,1718244656552,-500.0,0.00017534,2]
[329323937,1718244656566,-500.0,0.00017534,2]
[329323938,1718244656577,-500.0,0.00017534,2]
[329323939,1718244656588,-500.0,0.00017534,2]
[329323940,1718244656599,-645.76,0.00017534,2]
[329323941,1718244656612,-628.84927997,0.00017534,2]
[329323942,1718244656623,-500.0,0.00017534,2]
[329323943,1718244656637,-500.0,0.00017534,2]
[329323944,1718244656648,-500.0,0.00017534,2]
[329323945,1718244656664,-500.0,0.00017534,2]
[329323946,1718244656695,-500.0,0.00017534,2]
[329323947,1718244656710,-500.0,0.00017534,2]
[329323948,1718244656725,-505.61175352,0.00017534,2]
[329323949,1718244656737,-338.91922912,0.00017534,2]
[329323950,1718244656759,-500.0,0.00017534,2]
[329323951,1718244656771,-520.97,0.00017534,2]
[329323952,1718244656782,-500.0,0.00017534,2]
[329323953,1718244656793,-500.0,0.00017534,2]
[329323954,1718244656808,-500.0,0.00017534,2]
[329323955,1718244656820,-500.0,0.00017534,2]
[329323956,1718244656834,-500.0,0.00017534,2]
[329323957,1718244656847,-500.0,0.00017534,2]
[329323958,1718244656861,-696.98,0.00017534,2]
[329323959,1718244656874,-500.0,0.00017534,2]
[329323960,1718244656885,-500.0,0.00017534,2]
[329323961,1718244656897,-1196.98,0.00017534,2]
[329323962,1718244656909,-1109.56,0.00017534,2]
[329323963,1718244656920,-751.31,0.00017534,2]
[329323964,1718244656933,-500.0,0.00017534,2]
[329323965,1718244656945,-1254.28,0.00017534,2]
[329323966,1718244656957,-585.75006058,0.00017534,2]
[329323967,1718244656968,-500.0,0.00017534,2]
[329323968,1718244656980,-2253.24,0.00017534,2]
[329323969,1718244656992,-500.0,0.00017534,2]
[329323970,1718244657002,-500.0,0.00017534,2]
[329323971,1718244657016,-500.0,0.00017534,2]
[329323972,1718244657028,-500.0,0.00017534,2]
[329323973,1718244657039,-752.11,0.00017534,2]
[329323974,1718244657050,-500.0,0.00017534,2]
[329323975,1718244657062,-500.0,0.00017534,2]
[329323976,1718244657073,-500.0,0.00017534,2]
[329323977,1718244657097,-620.7636615,0.00017534,2]
[329323978,1718244657127,-6018.11,0.00017534,2]
[329323979,1718244657154,-500.0,0.00017534,2]
[329323980,1718244657177,-4585.7,0.00017534,2]
[329323981,1718244657197,-500.0,0.00017534,2]
[329323982,1718244657229,-500.0,0.00017534,2]
[329323983,1718244657258,-500.0,0.00017534,2]
[329323984,1718244657269,-6612.15,0.00017534,2]
[329323985,1718244657283,-697.97,0.00017534,2]
[329323986,1718244657294,-649.01,0.00017534,2]
[329323987,1718244657320,-658.07,0.00017534,2]
[329323988,1718244657340,-1644.06,0.00017534,2]
[329323989,1718244657357,-500.0,0.00017534,2]
[329323990,1718244657376,-2070.09,0.00017534,2]
[329323991,1718244657387,-500.0,0.00017534,2]
[329323992,1718244657403,-508.92713412,0.00017534,2]
[329323993,1718244657414,-1041.89,0.00017534,2]
[329323994,1718244657427,-500.0,0.00017534,2]
[329323995,1718244657440,-400.013277,0.00017534,2]
[329323996,1718244657452,-353.50807714,0.00017534,2]
[329323997,1718244657464,-527.95727625,0.00017534,2]
[329323998,1718244657475,-2615.32,0.00017534,2]
[329323999,1718244657486,-410.7646814,0.00017534,2]
[329324000,1718244657497,-205.3823407,0.00017589,2]
[329324001,1718244657510,-500.0,0.00017707,2]
[329324002,1718244657521,-270.81004488,0.00017707,2]
[329324003,1718244657533,-514.18,0.00017707,2]
[329324004,1718244657544,-514.18,0.00017707,2]
[329324005,1718244657555,-514.18,0.00017707,2]
[329324006,1718244657565,-500.0,0.00017707,2]
[329324007,1718244657578,-500.0,0.00017707,2]
[329324008,1718244657590,-500.0,0.00017707,2]
[329324009,1718244657602,-213.37223052,0.00017708,2]
[329324010,1718244657614,-150.427,0.00017735,2]
[329324011,1718244657624,-692.8,0.00017802,2]
[329324012,1718244657635,-514.18,0.00017807,2]
[329324013,1718244657646,-500.0,0.00017807,2]
[329324014,1718244657656,-516.98893118,0.00017808,2]
[329324015,1718244657667,-500.0,0.00017808,2]
[329324016,1718244657689,-500.0,0.00017808,2]
[329324017,1718244657702,-588.83,0.00017808,2]
[329324018,1718244657713,-511.55,0.00017808,2]
[329324019,1718244657728,-500.0,0.00017808,2]
[329324020,1718244657739,-500.0,0.00017808,2]
[329324021,1718244657750,-486.61605071,0.00017808,2]
[329324022,1718244657763,-500.0,0.00017808,2]
[329324023,1718244657773,-500.0,0.00017808,2]
[329324024,1718244657784,-500.0,0.00017808,2]
[329324025,1718244657794,-392.36626128,0.00017808,2]
[329324026,1718244657805,-500.0,0.00017808,2]
[329324027,1718244657818,-645.76,0.00017808,2]
[329324028,1718244657830,-506.17326596,0.00017808,2]
[329324029,1718244657844,-500.0,0.00017808,2]
[329324030,1718244657858,-576.31191636,0.00017808,2]
[329324031,1718244657871,-500.0,0.00017808,2]
[329324032,1718244657882,-520.04913974,0.00017808,2]
[329324033,1718244657895,-500.0,0.00017808,2]
[329324034,1718244657906,-500.0,0.00017808,2]
[329324035,1718244657918,-520.97,0.00017808,2]
[329324036,1718244657931,-500.0,0.00017808,2]
[329324037,1718244657941,-500.0,0.00017808,2]
[329324038,1718244657952,-500.0,0.00017808,2]
[329324039,1718244657963,-500.0,0.00017808,2]
[329324040,1718244657974,-500.0,0.00017808,2]
[329324041,1718244657985,-696.98,0.00017808,2]
[329324042,1718244657996,-500.0,0.00017808,2]
[329324043,1718244658007,-500.0,0.00017808,2]
[329324044,1718244658019,-1196.98,0.00017808,2]
[329324045,1718244658030,-1109.56,0.00017808,2]
[329324046,1718244658041,-751.31,0.00017808,2]
[329324047,1718244658052,-500.0,0.00017808,2]
[329324048,1718244658063,-1254.28,0.00017808,2]
[329324049,1718244658074,-500.0,0.00017808,2]
[329324050,1718244658085,-2253.24,0.00017808,2]
[329324051,1718244658097,-500.0,0.00017808,2]
[329324052,1718244658108,-500.0,0.00017808,2]
[329324053,1718244658120,-521.64882826,0.00017808,2]
[329324054,1718244658130,-500.0,0.00017808,2]
[329324055,1718244658142,-752.11,0.00017808,2]
[329324056,1718244658155,-500.0,0.00017808,2]
[329324057,1718244658166,-500.0,0.00017808,2]
[329324058,1718244658177,-424.66543432,0.00017808,2]
[329324059,1718244658189,-6018.11,0.00017808,2]
[329324060,1718244658199,-500.0,0.00017808,2]
[329324061,1718244658210,-4585.7,0.00017808,2]
[329324062,1718244658220,-511.39726141,0.00017808,2]
[329324063,1718244658231,-500.0,0.00017808,2]
[329324064,1718244658242,-500.0,0.00017808,2]
[329324065,1718244658252,-6612.15,0.00017808,2]
[329324066,1718244658265,-697.97,0.00017808,2]
[329324067,1718244658276,-649.01,0.00017808,2]
[329324068,1718244658287,-658.07,0.00017808,2]
[329324069,1718244658298,-1644.06,0.00017808,2]
[329324070,1718244658309,-500.0,0.00017808,2]
[329324071,1718244658320,-2070.09,0.00017808,2]
[329324072,1718244658331,-500.0,0.00017808,2]
[329324073,1718244658342,-1041.89,0.00017808,2]
[329324074,1718244658352,-500.0,0.00017808,2]
[329324075,1718244658363,-2615.32,0.00017808,2]
[329324076,1718244658375,-514.18,0.00017999,2]
[329324077,1718244658386,-514.18,0.00017999,2]
[329324078,1718244658397,-514.18,0.00017999,2]
[329324079,1718244658408,-514.18,0.00017999,2]
[329324080,1718244658419,-514.18,0.00017999,2]
[329324081,1718244658430,-514.27276949,0.00017999,2]
[329324082,1718244658441,-400.06186502,0.00017999,2]
[329324083,1718244658452,-2765.7597697,0.00018,2]
[329324084,1718244658463,-876.95081653,0.00018,2]
[329324085,1718244658476,-84099.64662654,0.00018,2]
[329324086,1718244658487,-1355.76865896,0.00018,2]
[329324087,1718244658499,-31896.92727391,0.00018,2]
[329324088,1718244658512,-692.8,0.00018002,2]
[329324089,1718244658525,-500.0,0.00018082,2]
[329324090,1718244658537,-500.0,0.00018082,2]
[329324091,1718244658548,-588.83,0.00018082,2]
[329324092,1718244658559,-511.55,0.00018082,2]
[329324093,1718244658571,-500.0,0.00018082,2]
[329324094,1718244658582,-500.0,0.00018082,2]
[329324095,1718244658593,-500.0,0.00018082,2]
[329324096,1718244658604,-500.0,0.00018082,2]
[329324097,1718244658614,-500.0,0.00018082,2]
[329324098,1718244658625,-500.0,0.00018082,2]
[329324099,1718244658636,-645.76,0.00018082,2]
[329324100,1718244658647,-500.0,0.00018082,2]
[329324101,1718244658658,-500.0,0.00018082,2]
[329324102,1718244658671,-520.97,0.00018082,2]
[329324103,1718244658703,-500.0,0.00018082,2]
[329324104,1718244658715,-500.0,0.00018082,2]
[329324105,1718244658728,-500.0,0.00018082,2]
[329324106,1718244658741,-500.0,0.00018082,2]
[329324107,1718244658752,-500.0,0.00018082,2]
[329324108,1718244658766,-696.98,0.00018082,2]
[329324109,1718244658779,-500.0,0.00018082,2]
[329324110,1718244658803,-500.0,0.00018082,2]
[329324111,1718244658829,-1196.98,0.00018082,2]
[329324112,1718244658841,-1109.56,0.00018082,2]
[329324113,1718244658855,-751.31,0.00018082,2]
[329324114,1718244658868,-500.0,0.00018082,2]
[329324115,1718244658879,-1254.28,0.00018082,2]
[329324116,1718244658891,-500.0,0.00018082,2]
[329324117,1718244658904,-2253.24,0.00018082,2]
[329324118,1718244658920,-500.0,0.00018082,2]
[329324119,1718244658931,-375.61125333,0.00018082,2]
[329324120,1718244658944,-320.32864345,0.00018082,2]
[329324121,1718244658954,-752.11,0.00018082,2]
[329324122,1718244658964,-500.0,0.00018082,2]
[329324123,1718244658975,-500.0,0.00018082,2]
[329324124,1718244658985,-6018.11,0.00018082,2]
[329324125,1718244658997,-4585.7,0.00018082,2]
[329324126,1718244659010,-522.26329465,0.00018082,2]
[329324127,1718244659022,-505.92601737,0.00018082,2]
[329324128,1718244659032,-6612.15,0.00018082,2]
[329324129,1718244659043,-697.97,0.00018082,2]
[329324130,1718244659055,-649.01,0.00018082,2]
[329324131,1718244659073,-658.07,0.00018082,2]
[329324132,1718244659086,-1644.06,0.00018082,2]
[329324133,1718244659097,-478.42201778,0.00018082,2]
[329324134,1718244659113,-2070.09,0.00018082,2]
[329324135,1718244659125,-231.50127947,0.00018082,2]
[329324136,1718244659136,-1041.89,0.00018082,2]
[329324137,1718244659150,-500.0,0.00018082,2]
[329324138,1718244659162,-153.0,0.00018095,2]
[329324139,1718244659172,-153.0,0.00018095,2]
[329324140,1718244659183,-153.0,0.00018095,2]
[329324141,1718244659194,-153.0,0.00018095,2]
[329324142,1718244659312,-153.0,0.00018095,2]
[329324143,1718244659323,-153.0,0.00018095,2]
[329324144,1718244659333,-153.0,0.00018095,2]
[329324145,1718244659344,-692.8,0.00018202,2]
[329324146,1718244659355,-50000.0,0.0001825,2]
[329324147,1718244659368,-1750.0,0.00018272,2]
[329324148,1718244659379,-500.0,0.00018356,2]
[329324149,1718244659389,-588.83,0.00018356,2]
[329324150,1718244659399,-511.55,0.00018356,2]
[329324151,1718244659410,-500.0,0.00018356,2]
[329324152,1718244659420,-500.0,0.00018356,2]
[329324153,1718244659431,-500.0,0.00018356,2]
[329324154,1718244659440,-500.0,0.00018356,2]
[329324155,1718244659451,-500.0,0.00018356,2]
[329324156,1718244659462,-598.02034989,0.00018356,2]
[329324157,1718244659474,-645.76,0.00018356,2]
[329324158,1718244659492,-500.0,0.00018356,2]
[329324159,1718244659507,-520.97,0.00018356,2]
[329324160,1718244659522,-500.0,0.00018356,2]
[329324161,1718244659532,-500.0,0.00018356,2]
[329324162,1718244659542,-527.75396569,0.00018356,2]
[329324163,1718244659552,-549.70490181,0.00018356,2]
[329324164,1718244659563,-696.98,0.00018356,2]
[329324165,1718244659574,-500.0,0.00018356,2]
[329324166,1718244659585,-500.0,0.00018356,2]
[329324167,1718244659595,-1196.98,0.00018356,2]
[329324168,1718244659607,-1109.56,0.00018356,2]
[329324169,1718244659617,-751.31,0.00018356,2]
[329324170,1718244659628,-1254.28,0.00018356,2]
[329324171,1718244659639,-500.0,0.00018356,2]
[329324172,1718244659650,-2253.24,0.00018356,2]
[329324173,1718244659662,-500.0,0.00018356,2]
[329324174,1718244659676,-752.11,0.00018356,2]
[329324175,1718244659705,-500.0,0.00018356,2]
[329324176,1718244659717,-500.0,0.00018356,2]
[329324177,1718244659733,-6018.11,0.00018356,2]
[329324178,1718244659744,-4585.7,0.00018356,2]
[329324179,1718244659756,-6612.15,0.00018356,2]
[329324180,1718244659768,-697.97,0.00018356,2]
[329324181,1718244659780,-649.01,0.00018356,2]
[329324182,1718244659792,-658.07,0.00018356,2]
[329324183,1718244659804,-1644.06,0.00018356,2]
[329324184,1718244659815,-2070.09,0.00018356,2]
[329324185,1718244659825,-1041.89,0.00018356,2]
[329324186,1718244659835,-500.0,0.00018356,2]
[329324187,1718244659846,-692.8,0.00018402,2]
[329324188,1718244659859,-306.0,0.0001841,2]
[329324189,1718244659870,-153.0,0.0001841,2]
[329324190,1718244659883,-166.666666,0.00018575,2]
[329324191,1718244659896,-692.8,0.00018601,2]
[329324192,1718244659907,-587.0,0.00018611,2]
[329324193,1718244659919,-500.0,0.0001863,2]
[329324194,1718244659932,-588.83,0.0001863,2]
[329324195,1718244659944,-511.55,0.0001863,2]
[329324196,1718244659957,-500.0,0.0001863,2]
[329324197,1718244659970,-500.0,0.0001863,2]
[329324198,1718244659981,-649.7157088,0.0001863,2]
[329324199,1718244659993,-500.0,0.0001863,2]
[329324200,1718244660008,-500.0,0.0001863,2]
[329324201,1718244660051,-645.76,0.0001863,2]
[329324202,1718244660066,-500.0,0.0001863,2]
[329324203,1718244660082,-520.97,0.0001863,2]
[329324204,1718244660102,-500.0,0.0001863,2]
[329324205,1718244660123,-500.0,0.0001863,2]
[329324206,1718244660143,-696.98,0.0001863,2]
[329324207,1718244660164,-500.0,0.0001863,2]
[329324208,1718244660181,-500.0,0.0001863,2]
[329324209,1718244660194,-1196.98,0.0001863,2]
[329324210,1718244660206,-1109.56,0.0001863,2]
[329324211,1718244660219,-751.31,0.0001863,2]
[329324212,1718244660233,-1254.28,0.0001863,2]
[329324213,1718244660253,-500.0,0.0001863,2]
[329324214,1718244660272,-2253.24,0.0001863,2]
[329324215,1718244660295,-500.0,0.0001863,2]
[329324216,1718244660306,-752.11,0.0001863,2]
[329324217,1718244660318,-500.0,0.0001863,2]
[329324218,1718244660330,-500.0,0.0001863,2]
[329324219,1718244660344,-6018.11,0.0001863,2]
[329324220,1718244660357,-4585.7,0.0001863,2]
[329324221,1718244660375,-6612.15,0.0001863,2]
[329324222,1718244660392,-697.97,0.0001863,2]
[329324223,1718244660419,-649.01,0.0001863,2]
[329324224,1718244660441,-658.07,0.0001863,2]
[329324225,1718244660463,-1644.06,0.0001863,2]
[329324226,1718244660476,-2070.09,0.0001863,2]
[329324227,1718244660489,-1041.89,0.0001863,2]
[329324228,1718244660510,-500.0,0.0001863,2]
[329324229,1718244660525,-250.0,0.0001863,2]
[329324230,1718244660539,-153.0,0.00018643,2]
[329324231,1718244660555,-153.0,0.00018643,2]
[329324232,1718244660567,-400.2536749,0.00018643,2]
[329324233,1718244660587,-500.0,0.00018733,2]
[329324234,1718244660599,-5279.70754643,0.00018745,2]
[329324235,1718244660617,-593.0,0.000188,2]
[329324236,1718244660638,-692.8,0.00018801,2]
[329324237,1718244660649,-150.0,0.00018882,2]
[329324238,1718244660667,-500.0,0.00018888,7]
[329324239,1718244660704,-500.0,0.00018888,7]
[329324240,1718244660718,-500.0,0.00018888,7]
[329324241,1718244660736,-500.0,0.00018888,7]
[329324242,1718244660753,-500.0,0.00018888,7]
[329324243,1718244660770,-500.0,0.00018888,7]
[329324244,1718244660783,-500.0,0.00018888,7]
[329324245,1718244660816,-500.0,0.00018888,7]
[329324246,1718244660830,-500.0,0.00018888,7]
[329324247,1718244660845,-500.0,0.00018888,7]
[329324248,1718244660859,-500.0,0.00018888,7]
[329324249,1718244660872,-500.0,0.00018888,7]
[329324250,1718244660888,-500.0,0.00018888,7]
[329324251,1718244660904,-500.0,0.00018888,7]
[329324252,1718244660918,-500.0,0.00018888,7]
[329324253,1718244660937,-343.0,0.00018888,7]
[329324254,1718244660952,-500.0,0.00018888,7]
[329324255,1718244660966,-151.839755,0.00018888,2]
[329324256,1718244660978,-226.606035,0.00018888,2]
[329324257,1718244660993,-938.98252434,0.000189,2]
[329324258,1718244661006,-500.0,0.00018904,2]
[329324259,1718244661018,-588.83,0.00018904,2]
[329324260,1718244661030,-511.55,0.00018904,2]
[329324261,1718244661042,-500.0,0.00018904,2]
[329324262,1718244661053,-500.0,0.00018904,2]
[329324263,1718244661065,-500.0,0.00018904,2]
[329324264,1718244661076,-500.0,0.00018904,2]
[329324265,1718244661089,-645.76,0.00018904,2]
[329324266,1718244661100,-500.0,0.00018904,2]
[329324267,1718244661112,-520.97,0.00018904,2]
[329324268,1718244661125,-500.0,0.00018904,2]
[329324269,1718244661137,-500.0,0.00018904,2]
[329324270,1718244661148,-696.98,0.00018904,2]
[329324271,1718244661159,-500.0,0.00018904,2]
[329324272,1718244661171,-500.0,0.00018904,2]
[329324273,1718244661182,-1196.98,0.00018904,2]
[329324274,1718244661195,-1109.56,0.00018904,2]
[329324275,1718244661206,-751.31,0.00018904,2]
[329324276,1718244661218,-154.084201,0.00018904,2]
[329324277,1718244661230,-170.014436,0.00018904,2]
[329324278,1718244661242,-1254.28,0.00018904,2]
[329324279,1718244661253,-153.351459,0.00018904,2]
[329324280,1718244661267,-500.0,0.00018904,2]
[329324281,1718244661278,-151.0,0.00018904,2]
[329324282,1718244661289,-2253.24,0.00018904,2]
[329324283,1718244661300,-151.0,0.00018904,2]
[329324284,1718244661311,-500.0,0.00018904,2]
[329324285,1718244661323,-151.0,0.00018904,2]
[329324286,1718244661333,-752.11,0.00018904,2]
[329324287,1718244661344,-500.0,0.00018904,2]
[329324288,1718244661355,-500.0,0.00018904,2]
[329324289,1718244661367,-6018.11,0.00018904,2]
[329324290,1718244661380,-4585.7,0.00018904,2]
[329324291,1718244661393,-6612.15,0.00018904,2]
[329324292,1718244661406,-697.97,0.00018904,2]
[329324293,1718244661417,-649.01,0.00018904,2]
[329324294,1718244661429,-157.75996,0.00018904,2]
[329324295,1718244661441,-151.0,0.00018904,2]
[329324296,1718244661453,-157.75996,0.00018904,2]
[329324297,1718244661466,-658.07,0.00018904,2]
[329324298,1718244661477,-1644.06,0.00018904,2]
[329324299,1718244661488,-2070.09,0.00018904,2]
[329324300,1718244661501,-1041.89,0.00018904,2]
[329324301,1718244661512,-500.0,0.00018904,2]
[329324302,1718244661525,-394.24290711,0.00019,2]
[329324303,1718244661536,-7271.83096458,0.00019,2]
[329324304,1718244661548,-151.0,0.00019,2]
[329324305,1718244661560,-176.11652926,0.00019,2]
[329324306,1718244661571,-152.675532,0.00019,2]
[329324307,1718244661582,-152.732731,0.00019,2]
[329324308,1718244661600,-151.0,0.00019,2]
[329324309,1718244661613,-151.0,0.00019,2]
[329324310,1718244661625,-183.399878,0.00019,2]
[329324311,1718244661637,-151.0,0.00019,2]
[329324312,1718244661650,-151.0,0.00019,2]
[329324313,1718244661661,-1001.933864,0.00019,2]
[329324314,1718244661685,-692.8,0.00019001,2]
[329324315,1718244661721,-314.7971623,0.00019014,2]
[329324316,1718244661743,-300.0,0.00019128,2]
[329324317,1718244661755,-1000.0,0.00019156,2]
[329324318,1718244661771,-500.0,0.00019178,2]
[329324319,1718244661785,-506.72560947,0.00019178,2]
[329324320,1718244661796,-506.01320517,0.00019178,2]
[329324321,1718244661811,-500.0,0.00019178,2]
[329324322,1718244661828,-354.75428357,0.00019178,2]
[329324323,1718244661846,-398.92541037,0.00019178,2]
[329324324,1718244661860,-501.50798007,0.00019178,2]
[329324325,1718244661873,-503.62307583,0.00019178,2]
[329324326,1718244661885,-462.94462444,0.00019178,2]
[329324327,1718244661897,-500.0,0.00019178,2]
[329324328,1718244661909,-157.58287669,0.00019178,2]
[329324329,1718244661921,-500.0,0.00019178,2]
[329324330,1718244661932,-500.0,0.00019178,2]
[329324331,1718244661943,-500.0,0.00019178,2]
[329324332,1718244661954,-500.0,0.00019178,2]
[329324333,1718244661965,-463.96633461,0.00019178,2]
[329324334,1718244661976,-500.0,0.00019178,2]
[329324335,1718244661986,-500.0,0.00019178,2]
[329324336,1718244661997,-500.0,0.00019178,2]
[329324337,1718244662009,-500.0,0.00019178,2]
[329324338,1718244662024,-500.0,0.00019178,2]